bitfinex/quotes_SOLUSD_20241121
["timestamp","ask_amount","ask_price","bid_price","bid_amount"]
[1732201529504,0.5,249.25,249.15,14.0477]
[1732201529694,0.5,249.25,249.24,32.23181503]
[1732201529901,4.34335797,249.75,249.2,32.23181503]
[1732201529902,0.5994,249.23,249.2,32.23181503]
[1732201530209,0.5994,249.21,249.2,32.23181503]
[1732201530410,0.0994,249.21,249.2,32.23181503]
[1732201530613,0.0994,249.23,249.2,32.23181503]
[1732201530793,0.5,249.27,249.22,32.23181503]
[1732201530995,0.5,249.2,248.96,4.0167]
[1732201531210,0.5,248.89,248.8,32.23181503]
[1732201531402,0.0994,248.86,248.81,0.91865852]
[1732201531585,0.5,248.93,248.84,32.23181503]
[1732201531786,0.5994,248.87,248.85,0.91851086]
[1732201533023,32.23181503,248.86,248.85,0.91851086]
[1732201533521,0.5994,248.86,248.85,0.91851086]
[1732201533830,0.5,248.86,248.85,0.91851086]
[1732201534736,0.5994,248.86,248.85,0.91851086]
[1732201534909,0.5,248.86,248.85,0.91851086]
[1732201535104,0.5,248.95,248.86,14.0641]
[1732201535428,0.0994,248.88,248.87,0.91843704]
[1732201535630,0.5994,248.88,248.87,0.91843704]
[1732201536345,20.0785,249.03,248.87,0.91843704]
[1732201536346,12.9073,249.43,249.09,0.5]
[1732201536541,12.9073,249.43,249.32,27.70187163]
[1732201536829,12.9073,249.43,249.3,27.70187163]
[1732201537005,12.9073,249.43,249.34,27.70187163]
[1732201537202,27.70187163,249.4,249.26,27.70187163]
[1732201537420,27.70187163,249.42,249.28,27.70187163]
[1732201537630,27.70187163,249.39,249.24,27.70187163]
[1732201538026,27.70187163,249.39,249.08,4.0146]
[1732201538027,27.70187163,249.41,249.26,27.70187163]
[1732201538231,20.0,249.38,249.26,27.70187163]
[1732201538440,20.93216463,249.38,249.26,27.70187163]
[1732201538639,0.93216463,249.38,249.26,27.70187163]
[1732201538837,27.70187163,249.28,248.94,0.5]
[1732201539046,27.70187163,249.19,249.05,27.70187163]
[1732201539351,27.70187163,249.17,249.03,27.70187163]
[1732201539530,32.585,249.36,249.11,27.70187163]
[1732201539531,23.776884,249.23,249.11,27.70187163]
[1732201539732,32.585,249.36,249.17,27.70187163]
[1732201539733,27.70187163,249.29,249.17,27.70187163]
[1732201539935,0.93216463,249.22,249.03,0.5]
[1732201540122,0.93216463,249.22,248.94,27.70187163]
[1732201540123,0.93216463,249.22,249.15,27.70187163]
[1732201540327,0.93216463,249.22,249.13,27.70187163]
[1732201540554,0.93216463,249.22,248.97,11.041]
[1732201540728,0.93216463,249.22,248.97,10.541]
[1732201541036,0.93216463,249.22,248.95,4.5168]
[1732201541037,23.776884,249.21,248.91,0.5]
[1732201541357,20.0551,249.32,248.74,12.6576]
[1732201541358,27.70187163,249.08,248.95,27.70187163]
[1732201541557,27.70187163,249.06,248.95,27.70187163]
[1732201541725,4.0154,249.04,248.93,27.70187163]
[1732201542048,0.93216463,249.03,248.93,27.70187163]
[1732201542254,20.93216463,249.03,248.93,27.70187163]
[1732201542429,20.93216463,249.03,248.95,27.70187163]
[1732201542832,0.93216463,249.03,248.95,27.70187163]
[1732201543552,20.0,249.01,248.86,27.70187163]
[1732201543851,20.0,248.91,248.81,27.70187163]
[1732201544055,0.93216463,248.9,248.81,27.70187163]
[1732201544542,0.93216463,248.9,248.85,27.70187163]
[1732201544952,0.93216463,248.9,248.83,27.70187163]
[1732201545150,0.93216463,248.9,248.81,27.70187163]
[1732201545654,0.93216463,248.9,248.89,27.70187163]
[1732201545831,0.93216463,248.9,248.85,27.70187163]
[1732201546031,0.93216463,248.9,248.76,0.5]
[1732201546032,4.0178,248.89,248.83,27.70187163]
[1732201546232,0.93216463,248.88,248.79,27.70187163]
[1732201546835,0.93216463,248.88,248.81,27.70187163]
[1732201547261,0.93216463,248.88,248.79,27.70187163]
[1732201547460,23.776884,248.87,248.77,27.70187163]
[1732201547759,20.0,248.81,248.71,27.70187163]
[1732201547950,28.63403626,248.8,248.61,0.5]
[1732201548135,47.70187163,248.76,248.64,27.70187163]
[1732201548339,47.70187163,248.74,248.64,27.70187163]
[1732201548539,47.70187163,248.74,248.54,0.5]
[1732201548540,20.0,248.71,248.62,27.70187163]
[1732201548834,20.0,248.71,248.58,27.70187163]
[1732201548835,20.0,248.68,248.58,27.70187163]
[1732201549054,20.93216463,248.67,248.6,27.70187163]
[1732201549232,0.93216463,248.66,248.6,27.70187163]
[1732201549652,4.0217,248.65,248.6,27.70187163]
[1732201549862,0.93216463,248.64,248.58,27.70187163]
[1732201550064,0.93216463,248.64,248.56,27.70187163]
[1732201550245,47.746884,248.61,248.51,27.70187163]
[1732201550571,14.0759,248.65,248.48,27.70187163]
[1732201550572,20.0,248.56,248.48,27.70187163]
[1732201550860,0.93216463,248.55,248.48,27.70187163]
[1732201551159,0.93216463,248.55,248.46,27.70187163]
[1732201551360,0.93216463,248.55,248.53,27.70187163]
[1732201551561,0.93216463,248.55,248.54,27.70187163]
[1732201552241,0.93216463,248.55,248.54,28.20187163]
[1732201552450,4.0215,248.67,248.56,1.0]
[1732201552657,0.93216463,248.66,248.56,27.70187163]
[1732201552946,27.70187163,248.63,248.5,27.70187163]
[1732201553149,0.93216463,248.62,248.54,27.70187163]
[1732201553353,0.93216463,248.62,248.56,27.70187163]
[1732201553849,0.93216463,248.62,248.46,0.5]
[1732201553850,4.0223,248.61,248.46,0.5]
[1732201554039,4.0223,248.61,248.49,27.70187163]
[1732201554040,0.93216463,248.6,248.49,27.70187163]
[1732201554240,0.93216463,248.6,248.58,27.70187163]
[1732201554655,0.93216463,248.6,248.59,30.23811566]
[1732201555540,20.89845533,249.0,248.59,30.23811566]
[1732201555541,30.23811566,248.81,248.64,0.5]
[1732201555746,30.23811566,248.81,248.52,30.23811566]
[1732201555747,30.23811566,248.79,248.67,30.23811566]
[1732201555955,0.93216463,248.8,248.71,30.23811566]
[1732201556155,0.93216463,248.8,248.78,0.5]
[1732201556355,0.93216463,248.8,248.77,30.23811566]
[1732201556356,0.93216463,248.8,248.79,30.23811566]
[1732201556796,0.93216463,248.8,248.77,30.23811566]
[1732201557069,0.93216463,248.8,248.79,30.73811566]
[1732201557362,30.23811566,249.13,248.95,0.5]
[1732201557567,30.23811566,249.15,249.03,30.23811566]
[1732201557743,30.23811566,249.09,248.97,30.23811566]
[1732201557937,30.23811566,249.07,248.95,30.73811566]
[1732201558153,30.23811566,249.03,248.89,30.23811566]
[1732201558351,30.23811566,249.01,248.89,30.23811566]
[1732201558648,30.23811566,249.01,248.83,10.047]
[1732201558649,30.23811566,249.05,248.93,30.23811566]
[1732201558876,30.23811566,249.03,248.91,30.23811566]
[1732201559355,34.1173,249.14,249.01,30.23811566]
[1732201559356,30.23811566,249.13,249.01,30.23811566]
[1732201559546,0.93216463,249.13,249.01,30.73811566]
[1732201559746,4.0141,249.12,249.03,30.23811566]
[1732201560164,30.23811566,249.19,249.07,30.23811566]
[1732201560369,30.23811566,249.16,249.04,30.23811566]
[1732201560596,14.0443,249.21,248.97,4.0164]
[1732201560597,30.23811566,249.1,248.98,30.23811566]
[1732201560888,30.23811566,249.12,248.98,0.5]
[1732201561081,12.02,249.2,248.93,0.5]
[1732201561288,12.02,249.2,248.81,32.5459]
[1732201561289,23.97,249.15,248.81,0.5]
[1732201561473,12.02,249.12,248.79,0.5]
[1732201561680,20.0,249.09,248.79,0.5]
[1732201561986,20.0,248.99,248.83,0.5]
[1732201562194,20.0,248.94,248.87,30.23811566]
[1732201562367,20.0,248.94,248.88,0.5]
[1732201562567,34.1254,249.08,248.92,0.5]
[1732201562568,20.0,249.0,248.92,0.5]
[1732201562787,20.0,249.0,248.95,0.5]
[1732201562987,20.0,249.0,248.88,0.5]
[1732201563168,20.0,249.07,248.93,0.5]
[1732201563493,14.0516,249.08,248.89,0.5]
[1732201563668,20.0711,249.12,248.84,0.5]
[1732201563871,20.0711,249.12,248.81,0.5]
[1732201564069,30.23811566,248.94,248.82,30.23811566]
[1732201564371,30.23811566,248.92,248.81,0.5]
[1732201564693,20.0,248.81,248.69,0.5]
[1732201564997,20.0,248.81,248.52,30.73811566]
[1732201564998,20.0,248.92,248.57,1.0]
[1732201565204,20.0,248.92,248.52,30.23811566]
[1732201565205,12.02,248.89,248.6,0.5]
[1732201565496,12.02,248.83,248.56,0.5]
[1732201565669,35.796884,248.78,248.55,0.5]
[1732201565866,20.0,248.73,248.47,0.5]
[1732201566070,20.0,248.73,248.44,0.647]
[1732201566071,54.01499966,248.53,248.44,0.147]
[1732201566266,20.0,248.54,248.44,0.147]
[1732201566267,20.0,248.52,248.45,31.23811566]
[1732201566499,20.0,248.71,248.51,30.73811566]
[1732201566671,23.776884,248.7,248.5,0.5]
[1732201566873,34.1679,248.77,248.49,30.23811566]
[1732201566874,23.776884,248.61,248.49,30.23811566]
[1732201567068,23.776884,248.59,248.47,30.23811566]
[1732201567374,70.0,248.76,248.47,30.73811566]
[1732201567375,30.23811566,248.58,248.47,30.73811566]
[1732201567592,30.23811566,248.58,248.44,0.147]
[1732201567593,30.23811566,248.62,248.52,0.5]
[1732201567772,4.0223,248.61,248.53,0.5]
[1732201568097,30.23811566,248.68,248.58,0.5]
[1732201568280,30.23811566,248.76,248.51,30.23811566]
[1732201568281,30.23811566,248.62,248.51,30.23811566]
[1732201568484,30.23811566,248.56,248.45,30.23811566]
[1732201568906,30.23811566,248.56,248.47,0.5]
[1732201569076,14.0736,248.69,248.47,30.73811566]
[1732201569077,30.23811566,248.58,248.47,30.73811566]
[1732201569277,30.23811566,248.56,248.44,0.147]
[1732201569502,23.776884,248.53,248.44,0.147]
[1732201569884,30.23811566,248.5,248.44,0.147]
[1732201570184,23.776884,248.49,248.44,0.147]
[1732201570592,4.0238,248.52,248.44,0.147]
[1732201571007,4.0233,248.56,248.45,31.23811566]
[1732201571187,0.93216463,248.55,248.47,30.73811566]
[1732201571396,0.93216463,248.55,248.53,30.73811566]
[1732201571591,0.93216463,248.55,248.51,30.23811566]
[1732201571894,30.23811566,248.54,248.44,0.647]
[1732201572095,30.23811566,248.54,248.44,0.147]
[1732201572308,30.23811566,248.54,248.46,0.5]
[1732201572483,4.95546463,248.55,248.46,0.5]
[1732201572484,4.95546463,248.55,248.47,30.23811566]
[1732201572685,4.95546463,248.55,248.47,0.5]
[1732201573006,4.95546463,248.55,248.44,0.147]
[1732201573007,54.01499966,248.54,248.44,0.147]
[1732201573387,23.776884,248.49,248.44,0.147]
[1732201573702,23.776884,248.51,248.44,0.147]
[1732201573893,23.776884,248.49,248.44,0.147]
[1732201574103,23.776884,248.48,248.44,0.147]
[1732201574294,4.0243,248.49,248.44,0.147]
[1732201574810,30.23811566,248.48,248.44,0.147]
[1732201575498,4.0243,248.49,248.44,0.147]
[1732201575706,34.26201566,248.52,248.47,0.5]
[1732201576006,30.23811566,248.49,248.41,0.5]
[1732201576185,30.23811566,248.48,248.41,0.5]
[1732201576389,30.23811566,248.5,248.44,0.5]
[1732201576602,30.23811566,248.45,248.4,0.5]
[1732201576786,30.23811566,248.45,248.44,0.147]
[1732201577908,54.01499966,248.45,248.44,0.147]
[1732201578216,58.03989966,248.45,248.44,0.147]
[1732201578387,58.03989966,248.45,248.44,0.0216]
[1732201578809,4.0249,248.45,248.44,0.0216]
[1732201579008,4.0245,248.48,248.45,0.5]
[1732201579327,47.25501629,248.55,248.54,0.5]
[1732201579514,0.93216463,248.55,248.54,1.0]
[1732201579898,30.23811566,248.67,248.63,0.5]
[1732201580210,30.23811566,248.67,248.66,0.5]
[1732201580392,30.23811566,248.69,248.68,0.5]
[1732201580599,30.23811566,248.69,248.65,0.5]
[1732201580794,30.23811566,248.67,248.65,0.5]
[1732201581003,30.23811566,248.67,248.64,0.5]
[1732201581308,30.23811566,248.67,248.45,0.5]
[1732201581309,30.23811566,248.65,248.59,0.5]
[1732201581616,26.0903,248.75,248.6,0.5]
[1732201581816,26.0903,248.75,248.52,14.0827]
[1732201581817,4.0201,248.75,248.67,0.5]
[1732201581987,4.0201,248.75,248.58,0.5]
[1732201582187,27.9901,248.75,248.57,0.5]
[1732201582393,27.9901,248.75,248.4,0.5]
[1732201582394,78.2413,248.75,248.5,1.0]
[1732201582716,30.23811566,248.52,248.48,0.5]
[1732201582913,30.23811566,248.52,248.46,1.0]
[1732201583125,30.23811566,248.52,248.46,0.5]
[1732201583502,30.23811566,248.56,248.54,0.5]
[1732201583702,30.23811566,248.59,248.58,0.5]
[1732201583932,27.799684,248.58,248.49,0.5]
[1732201584104,30.23811566,248.51,248.48,0.5]
[1732201584426,30.23811566,248.49,248.43,0.5]
[1732201584607,30.23811566,248.45,248.43,0.5]
[1732201584802,30.23811566,248.45,248.44,0.0216]
[1732201584803,54.01499966,248.45,248.44,0.0216]
[1732201585517,23.776884,248.45,248.44,0.0216]
[1732201585713,77.98499966,248.45,248.28,0.5]
[1732201585914,12.02,248.51,248.28,0.5]
[1732201585915,4.0262,248.37,248.36,1.0]
[1732201586124,30.23811566,248.38,248.28,30.23811566]
[1732201586125,30.23811566,248.38,248.34,1.0]
[1732201586442,4.0259,248.39,248.28,30.23811566]
[1732201586443,4.0238,248.52,248.47,0.5]
[1732201586738,30.23811566,248.49,248.4,0.5]
[1732201586908,30.23811566,248.46,248.38,0.5]
[1732201587226,30.23811566,248.44,248.37,0.5]
[1732201587431,30.23811566,248.42,248.36,0.5]
[1732201587613,30.23811566,248.42,248.38,0.5]
[1732201587816,20.0,248.43,248.36,1.0]
[1732201588004,20.0,248.38,248.37,1.0]
[1732201588211,20.0,248.36,248.35,50.0]
[1732201588405,43.776884,248.36,248.35,51.0]
[1732201588622,50.9,248.79,248.35,51.0]
[1732201588623,4.0252,248.44,248.43,0.5]
[1732201588833,4.0248,248.46,248.41,0.5]
[1732201589012,4.0248,248.46,248.43,0.5]
[1732201589208,4.0241,248.51,248.47,0.5]
[1732201589409,30.23811566,248.52,248.5,0.5]
[1732201589620,4.0234,248.54,248.51,0.5]
[1732201589827,30.23811566,248.53,248.49,0.5]
[1732201590014,4.0241,248.5,248.48,0.5]
[1732201590335,23.97,248.49,248.48,0.5]
[1732201590651,23.97,248.49,248.35,60.0664]
[1732201590652,20.0,248.48,248.46,0.5]
[1732201590822,20.0,248.46,248.43,0.5]
[1732201591022,20.0,248.46,248.43,1.0]
[1732201591420,30.23811566,248.45,248.43,0.5]
[1732201591620,30.23811566,248.45,248.41,0.5]
[1732201591621,23.776884,248.42,248.41,0.5]
[1732201591833,43.776884,248.42,248.41,0.5]
[1732201592244,47.802484,248.41,248.4,0.5]
[1732201592822,23.776884,248.4,248.35,50.0]
[1732201593035,78.04059966,248.41,248.35,50.0]
[1732201593036,43.776884,248.36,248.35,50.0]
[1732201593343,43.776884,248.36,248.35,49.5]
[1732201594025,47.803284,248.36,248.35,49.5]
[1732201595845,12.02,248.56,248.35,49.5]
[1732201595846,58.1695,248.54,248.4,0.5]
[1732201596023,4.0254,248.42,248.41,1.0]
[1732201596546,30.23811566,248.49,248.48,0.5]
[1732201596743,4.0231,248.56,248.52,1.0]
[1732201596928,4.0231,248.56,248.44,30.23811566]
[1732201596929,30.23811566,248.6,248.59,1.0]
[1732201597128,30.23811566,248.6,248.57,0.5]
[1732201597348,14.0788,248.6,248.44,0.5]
[1732201597542,0.12066759,248.5,248.49,1.0]
[1732201599056,0.12066759,248.5,248.49,31.23811566]
[1732201599946,10.0536,248.67,248.49,31.23811566]
[1732201599947,30.23811566,248.67,248.66,1.0]
[1732201600151,4.25731338,248.82,248.66,1.0]
[1732201600152,70.0,248.99,248.73,1.0]
[1732201600348,4.02,248.76,248.73,1.0]
[1732201600554,10.0456,248.87,248.73,1.0]
[1732201600555,5.628106,248.74,248.73,0.5]
[1732201600729,1.607906,248.74,248.73,1.0]
[1732201600932,4.0173,248.92,248.87,0.5]
[1732201601140,4.0173,248.92,248.69,0.5]
[1732201601141,30.23811566,248.96,248.92,0.5]
[1732201601432,4.0131,249.18,249.08,0.5]
[1732201601632,4.0131,249.18,248.85,12.6828]
[1732201601633,4.0131,249.18,249.16,0.5]
[1732201601889,4.0131,249.18,248.96,0.5]
[1732201601890,30.23811566,249.28,249.27,0.5]
[1732201602065,20.0533,249.34,249.15,30.23811566]
[1732201602066,10.0308,249.25,249.18,0.5]
[1732201602261,10.0308,249.25,249.12,0.5]
[1732201602436,10.0308,249.25,249.0,30.23811566]
[1732201602437,1.0133324,249.15,249.08,0.5]
[1732201602634,1.0133324,249.15,249.14,1.0]
[1732201603140,4.0094,249.41,249.35,0.5]
[1732201603331,4.0046,249.71,249.5,0.5]
[1732201603534,30.23811566,249.58,249.55,0.5]
[1732201603734,30.23811566,249.56,249.49,0.5]
[1732201603961,30.23811566,249.6,249.41,12.5351]
[1732201603962,30.23811566,249.5,249.46,0.5]
[1732201604258,30.23811566,249.53,249.52,0.5]
[1732201604759,30.23811566,249.53,249.43,0.5]
[1732201604760,30.23811566,249.53,249.47,0.5]
[1732201605060,14.0229,249.59,249.36,0.5]
[1732201605245,14.0229,249.59,249.41,0.5]
[1732201605438,30.23811566,249.45,249.44,0.5]
[1732201605648,30.23811566,249.46,249.4,0.5]
[1732201605969,30.23811566,249.41,249.36,0.5]
[1732201606263,30.23811566,249.37,249.28,1.0]
[1732201606472,30.23811566,249.37,249.14,12.886]
[1732201606473,30.23811566,249.37,249.24,0.5]
[1732201606662,30.23811566,249.37,249.05,0.5]
[1732201606663,30.23811566,249.26,249.09,0.5]
[1732201606844,20.0,249.16,249.08,0.5]
[1732201607045,20.0,249.14,249.1,0.5]
[1732201607244,20.0,249.14,249.13,0.5]
[1732201607871,50.23811566,249.24,249.23,0.5]
[1732201608048,20.0,249.24,249.23,0.5]
[1732201608667,43.776884,249.24,249.23,0.5]
[1732201608969,30.23811566,249.33,249.32,0.5]
[1732201609469,30.23811566,249.33,249.3,0.5]
[1732201609773,30.23811566,249.33,249.16,30.23811566]
[1732201609774,34.24781566,249.39,249.36,0.5]
[1732201609972,4.0094,249.42,249.4,0.5]
[1732201610152,20.0292,249.64,249.4,0.5]
[1732201610153,14.85351747,249.82,249.45,12.0974]
[1732201610356,70.0,250.0,249.45,12.0974]
[1732201610357,14.0106,249.81,249.7,0.5]
[1732201610768,14.0106,249.81,249.71,0.5]
[1732201611069,14.0106,249.81,249.61,0.5]
[1732201611272,1.600843,249.8,249.73,0.5]
[1732201611442,1.600843,249.8,249.72,0.5]
[1732201611443,30.23811566,249.76,249.72,0.5]
[1732201611645,30.23811566,249.76,249.48,30.23811566]
[1732201611646,4.0033,249.8,249.79,0.5]
[1732201611869,4.0033,249.8,249.75,0.5]
[1732201612072,4.0033,249.8,249.55,4.507]
[1732201612443,4.0033,249.8,249.6,0.5]
[1732201612648,4.0033,249.8,249.58,0.5]
[1732201612859,4.0033,249.8,249.55,14.025]
[1732201612860,30.23811566,249.77,249.65,30.23811566]
[1732201613066,30.23811566,249.71,249.59,30.23811566]
[1732201613284,30.23811566,249.69,249.57,30.23811566]
[1732201613461,4.0051,249.68,249.57,30.23811566]
[1732201613665,30.23811566,249.63,249.51,30.23811566]
[1732201613862,4.0051,249.68,249.5,0.5]
[1732201614176,34.0435,249.68,249.34,13.2861]
[1732201614483,20.5,249.67,249.34,13.2861]
[1732201614686,1.0,249.62,249.34,13.2861]
[1732201614858,20.0,249.45,249.38,30.06068084]
[1732201615184,20.0,249.41,249.29,30.06068084]
[1732201615352,20.0,249.43,249.32,0.5]
[1732201615556,20.0,249.43,249.29,0.5]
[1732201615557,20.0,249.43,249.31,4.011]
[1732201615786,23.776884,249.42,249.31,4.011]
[1732201615988,20.0,249.47,249.41,30.06068084]
[1732201616279,20.0,249.47,249.36,0.5]
[1732201616280,30.06068084,249.58,249.45,30.06068084]
[1732201616659,30.06068084,249.53,249.41,30.06068084]
[1732201616892,30.06068084,249.51,249.41,30.06068084]
[1732201617091,30.06068084,249.47,249.36,30.06068084]
[1732201617382,30.06068084,249.47,249.34,30.06068084]
[1732201617573,24.0086,249.46,249.34,30.06068084]
[1732201617769,20.0,249.42,249.32,30.06068084]
[1732201617959,20.0,249.38,249.26,30.06068084]
[1732201618161,23.776884,249.33,249.22,30.06068084]
[1732201618356,50.06068084,249.34,249.26,30.06068084]
[1732201618357,20.0,249.34,249.26,30.06068084]
[1732201618578,4.0064,249.6,249.38,0.5]
[1732201618965,4.0064,249.6,249.31,0.5]
[1732201619161,14.0224,249.6,249.32,0.5]
[1732201619359,14.0224,249.6,249.33,0.5]
[1732201619360,10.016,249.6,249.33,0.5]
[1732201619565,30.08341071,249.44,249.34,30.08341071]
[1732201619789,30.08341071,249.5,249.38,30.08341071]
[1732201619963,20.0,249.55,249.44,30.08341071]
[1732201620160,20.0,249.55,249.36,30.08341071]
[1732201620486,44.0633,249.64,249.36,30.08341071]
[1732201620487,4.0057,249.64,249.43,0.5]
[1732201620689,4.004,249.75,249.51,0.5]
[1732201620992,14.014,249.75,249.49,0.5]
[1732201621194,14.014,249.75,249.49,1.0]
[1732201621370,14.014,249.75,249.36,30.08341071]
[1732201621371,30.08341071,249.69,249.57,30.08341071]
[1732201621885,30.08341071,249.67,249.57,30.08341071]
[1732201622096,30.08341071,249.69,249.57,30.08341071]
[1732201622388,4.0041,249.74,249.68,30.08341071]
[1732201622599,0.5,249.96,249.6,30.08341071]
[1732201622600,4.0032,249.8,249.72,30.08341071]
[1732201622767,4.0032,249.8,249.56,0.5]
[1732201623169,4.0032,249.8,249.51,23.776884]
[1732201623170,14.0112,249.8,249.51,23.776884]
[1732201623392,0.5,249.84,249.51,4.0077]
[1732201623597,0.5,249.82,249.49,12.6099]
[1732201623802,0.5,249.85,249.51,0.5]
[1732201623979,30.08341071,249.77,249.64,30.08341071]
[1732201624375,30.08341071,249.71,249.59,30.08341071]
[1732201624573,1.0,249.83,249.56,30.08341071]
[1732201624791,1.0,249.83,249.31,20.19862745]
[1732201624792,0.5,249.67,249.35,12.0159]
[1732201625094,30.08341071,249.49,249.39,30.08341071]
[1732201625395,30.08341071,249.53,249.43,30.08341071]
[1732201625602,20.0,249.52,249.46,30.08341071]
[1732201625895,20.0,249.56,249.48,30.08341071]
[1732201626086,20.0,249.58,249.48,30.08341071]
[1732201626296,20.0,249.52,249.39,30.08341071]
[1732201626477,30.08341071,249.49,249.37,30.08341071]
[1732201626796,30.08341071,249.44,249.33,30.08341071]
[1732201626972,20.0,249.45,249.24,0.5]
[1732201626973,30.08341071,249.45,249.24,0.5]
[1732201627280,20.0,249.49,249.4,30.08341071]
[1732201627479,4.0073,249.55,249.41,4.0094]
[1732201627696,30.08341071,249.51,249.33,0.5]
[1732201627902,30.08341071,249.51,249.3,0.5]
[1732201627903,30.08341071,249.51,249.39,30.08341071]
[1732201628092,24.0071,249.56,249.47,30.08341071]
[1732201628296,20.0,249.58,249.49,30.08341071]
[1732201628471,34.08911071,249.65,249.53,30.08341071]
[1732201628673,30.08341071,249.59,249.47,30.08341071]
[1732201628895,4.0057,249.65,249.42,0.5]
[1732201629097,30.08341071,249.58,249.48,30.08341071]
[1732201629296,30.08341071,249.6,249.48,30.08341071]
[1732201629603,4.0067,249.58,249.48,30.08341071]
[1732201629904,4.0063,249.61,249.48,30.08341071]
[1732201630095,30.08341071,249.54,249.42,30.08341071]
[1732201630398,30.08341071,249.44,249.33,30.08341071]
[1732201630914,30.08341071,249.48,249.39,30.08341071]
[1732201631084,30.08341071,249.46,249.35,30.08341071]
[1732201631281,30.08341071,249.46,249.26,4.0118]
[1732201631282,30.08341071,249.42,249.31,30.08341071]
[1732201631513,20.0,249.49,249.23,0.5]
[1732201631514,4.0101,249.37,249.25,30.08341071]
[1732201631720,4.01,249.38,249.28,30.08341071]
[1732201632004,4.01,249.38,249.27,30.08341071]
[1732201632190,30.08341071,249.35,249.25,30.08341071]
[1732201632500,30.08341071,249.48,249.25,30.08341071]
[1732201632501,30.08341071,249.45,249.34,30.08341071]
[1732201632701,30.08341071,249.47,249.36,30.08341071]
[1732201632878,30.08341071,249.47,249.34,30.08341071]
[1732201633502,30.08341071,249.47,249.36,30.08341071]
[1732201633706,30.08341071,249.45,249.34,30.08341071]
[1732201633878,30.08341071,249.45,249.3,10.0277]
[1732201633879,30.08341071,249.47,249.36,30.08341071]
[1732201634309,30.08341071,249.43,249.32,30.08341071]
[1732201634605,20.0,249.36,249.24,30.08341071]
[1732201634779,23.776884,249.31,249.16,10.0334]
[1732201634980,20.0,249.3,249.21,30.08341071]
[1732201635209,20.0,249.34,249.23,30.08341071]
[1732201635377,53.86029471,249.33,249.21,30.08341071]
[1732201635715,20.0,249.28,249.17,30.08341071]
[1732201635996,30.08341071,249.31,249.19,30.08341071]
[1732201636204,4.0109,249.32,249.23,30.08341071]
[1732201636405,30.08341071,249.31,249.19,30.08341071]
[1732201636580,20.0,249.3,249.19,30.08341071]
[1732201636981,4.0109,249.32,249.25,30.08341071]
[1732201637178,4.0106,249.34,249.23,30.08341071]
[1732201637393,4.0106,249.34,249.16,14.0471]
[1732201637394,20.0,249.39,249.29,30.08341071]
[1732201637607,27.786184,249.42,249.21,30.08341071]
[1732201637608,30.08341071,249.32,249.21,30.08341071]
[1732201637905,30.08341071,249.36,249.25,30.08341071]
[1732201638104,30.08341071,249.36,249.17,14.0466]
[1732201638105,30.08341071,249.34,249.23,30.08341071]
[1732201638310,23.776884,249.33,249.23,30.08341071]
[1732201638808,30.08341071,249.32,249.21,30.08341071]
[1732201639102,23.776884,249.33,249.12,30.08341071]
[1732201639103,20.0,249.33,249.23,30.08341071]
[1732201639281,30.08341071,249.28,249.17,30.08341071]
[1732201639484,30.08341071,249.24,249.13,30.08341071]
[1732201639690,23.776884,249.35,249.12,14.0493]
[1732201639989,23.776884,249.35,249.15,0.5]
[1732201640188,20.5398,249.51,249.21,0.5]
[1732201640393,20.5398,249.51,249.18,0.5]
[1732201640597,20.5398,249.51,249.12,14.0493]
[1732201640598,0.5,249.49,249.2,0.5]
[1732201640879,30.08341071,249.38,249.26,30.08341071]
[1732201641079,30.08341071,249.37,249.26,30.08341071]
[1732201641389,30.08341071,249.35,249.24,30.08341071]
[1732201641784,30.08341071,249.32,249.2,30.08341071]